fUSD/lending_fUSD_20260130
["ID","MTS","AMOUNT","RATE_DAILY","PERIOD"]
[404036396,1769774532360,-150.0,0.00013804,2]
[404036397,1769774533478,500.0,0.00013797,2]
[404036398,1769774534210,500.0,0.00013797,2]
[404036399,1769774534302,6700.01,0.00013705,2]
[404036400,1769774534329,10000.01,0.00013705,2]
[404036401,1769774534357,10000.01,0.00013705,2]
[404036402,1769774550310,2284.83159614,0.00013704,2]
[404036403,1769774582573,300.0,0.00013704,2]
[404036404,1769774583772,150.0,0.00013704,2]
[404036405,1769774596652,431.92483929,0.00013697,2]
[404036409,1769774641673,300.0,0.00013704,2]
[404036410,1769774649849,151.0,0.00013702,2]
[404036411,1769774703796,1200.0,0.00013704,2]
[404036412,1769774747290,5182.25356457,0.00013695,2]
[404036413,1769774747314,10000.01,0.00013695,2]
[404036414,1769774747338,10000.01,0.00013695,2]
[404036415,1769774754029,-3726.47181309,0.00013695,2]
[404036416,1769774760772,-895.079891,0.00013697,2]
[404036417,1769774761051,-1790.159782,0.00013697,2]
[404036418,1769774763521,-3580.319564,0.00013697,2]
[404036419,1769774763636,-2839.370872,0.00013697,2]
[404036420,1769774763668,-300.0,0.00013704,2]
[404036421,1769774763700,-150.0,0.00013704,2]
[404036422,1769774818280,3421.268256,0.00013651,2]
[404036423,1769774818304,793.69067859,0.00013651,2]
[404036424,1769774823176,300.0,0.00013704,2]
[404036429,1769774835444,423.37602092,0.00013651,2]
[404036430,1769774876326,545.0355172,0.00013651,2]
[404036431,1769774898003,512.0804313,0.00013705,2]
[404036432,1769774903198,1200.0,0.00013704,2]
[404036433,1769774942736,300.0,0.00013704,2]
[404036434,1769774943026,300.0,0.00013704,2]
[404036435,1769774957758,955.89913636,0.00013705,2]
[404036436,1769774958029,926.47041239,0.00013705,2]
[404036437,1769774985688,940.19436341,0.00013686,2]
[404036438,1769775003195,300.0,0.00013704,2]
[404036439,1769775004248,1200.0,0.00013704,2]
[404036440,1769775009897,195.01,0.000137,2]
[404036441,1769775010119,195.01,0.000137,2]
[404036442,1769775011231,324.41,0.000137,2]
[404036443,1769775011461,324.41,0.000137,2]
[404036444,1769775017753,264.42343983,0.00013705,2]
[404036445,1769775017778,341.44977687,0.00013705,2]
[404036451,1769775036710,-1014.31929586,0.00013705,2]
[404036452,1769775036765,-397.33497739,0.00013705,2]
[404036453,1769775036873,-3794.84900764,0.00013705,2]
[404036454,1769775036885,-44010.7815,0.00013705,2]
[404036455,1769775036896,-453.0,0.00013705,2]
[404036456,1769775036927,-5258.22613064,0.00013705,2]
[404036457,1769775036938,-1931.43592063,0.00013705,2]
[404036472,1769775038036,-16972.94042967,0.00013705,2]
[404036473,1769775038048,-904.82,0.00013705,2]
[404036474,1769775038092,-3619.89584989,0.00013705,2]
[404036475,1769775038148,-2259.8128437,0.00013705,2]
[404036476,1769775038160,-999.0,0.00013705,2]
[404036477,1769775038213,-299.9665821,0.00013705,2]
[404036478,1769775038224,-347.43543425,0.00013705,2]
[404036479,1769775038265,-1277.0,0.00013705,2]
[404036480,1769775038276,-662408.00556982,0.00013705,2]
[404036489,1769775040168,-29545.60862359,0.00013705,2]
[404036490,1769775040322,-339789.05813482,0.00013705,2]
[404036491,1769775040333,-300.0,0.00013751,2]
[404036492,1769775040343,-2263.15227696,0.00013776,2]
[404036493,1769775040355,-500.0,0.00013797,2]
[404036494,1769775040366,-500.0,0.00013797,2]
[404036495,1769775040376,-151.0,0.00013797,2]
[404036496,1769775040387,-500.0,0.00013797,2]
[404036497,1769775040398,-151.0,0.00013797,2]
[404036498,1769775040407,-500.0,0.00013797,2]
[404036499,1769775040416,-151.0,0.00013797,2]
[404036500,1769775040426,-500.0,0.00013797,2]
[404036501,1769775040436,-500.0,0.00013797,2]
[404036502,1769775040446,-151.0,0.00013797,2]
[404036503,1769775040456,-500.0,0.00013797,2]
[404036504,1769775040466,-151.0,0.00013797,2]
[404036505,1769775040475,-372.70898376,0.00013797,2]
[404036506,1769775040484,-151.0,0.00013797,2]
[404036507,1769775040493,-151.0,0.00013797,2]
[404036508,1769775040503,-151.0,0.00013797,2]
[404036509,1769775040512,-500.0,0.00013797,2]
[404036510,1769775040521,-151.0,0.00013797,2]
[404036511,1769775040532,-151.0,0.00013797,2]
[404036512,1769775040542,-151.0,0.00013797,2]
[404036513,1769775040551,-500.0,0.00013797,2]
[404036514,1769775040561,-500.0,0.00013797,2]
[404036515,1769775040571,-500.0,0.00013797,2]
[404036516,1769775040580,-564.91584648,0.00013797,2]
[404036517,1769775040589,-500.0,0.00013804,2]
[404036518,1769775040598,-500.0,0.00013804,2]
[404036519,1769775040608,-500.0,0.00013804,2]
[404036520,1769775040617,-500.0,0.00013804,2]
[404036521,1769775040626,-285.0315092,0.00013805,2]
[404036522,1769775040636,-500.0,0.00013865,2]
[404036523,1769775040647,-500.0,0.00014006,2]
[404036524,1769775040657,-310.72048062,0.00014006,2]
[404036525,1769775040666,-4214.95893456,0.00014123,2]
[404036526,1769775040676,-5520.93769269,0.00014164,2]
[404036527,1769775042573,-0.02800737,0.00014164,2]
[404036528,1769775042591,-833.025,0.00014164,2]
[404036529,1769775042602,-1097.62003327,0.00014164,2]
[404036530,1769775042614,-479.17995002,0.00014164,2]
[404036531,1769775042625,-1174.13942564,0.00014164,2]
[404036532,1769775042636,-4302.7478609,0.00014183,2]
[404036533,1769775042647,-500.04,0.00014216,2]
[404036534,1769775042658,-545.03551719,0.00014258,2]
[404036535,1769775042668,-1075.17863351,0.00014276,2]
[404036536,1769775042680,-208.10063786,0.00014276,2]
[404036537,1769775042691,-1000.0,0.0001428,2]
[404036538,1769775042705,-160.36848985,0.0001443,2]
[404036539,1769775042718,-4872.75220324,0.00014445,2]
[404036540,1769775042731,-2281.63723181,0.00014445,2]
[404036551,1769775047141,-510.76427628,0.00014445,2]
[404036552,1769775114995,160.82938826,0.00013704,2]
[404036553,1769775119825,436.25846673,0.00013704,2]
[404036554,1769775121308,500.0,0.00013704,2]
[404036555,1769775121345,252.05216452,0.00013704,2]
[404036556,1769775121409,213.88472432,0.00013704,2]
[404036557,1769775121493,500.0,0.00013704,2]
[404036558,1769775121608,500.0,0.00013704,2]
[404036560,1769775185858,500.0,0.00013704,2]
[404036561,1769775185908,500.0,0.00013704,2]
[404036562,1769775185965,500.0,0.00013704,2]
[404036563,1769775186017,500.0,0.00013704,2]
[404036564,1769775186068,500.0,0.00013704,2]
[404036565,1769775186127,500.0,0.00013704,2]
[404036566,1769775186170,500.0,0.00013704,2]
[404036567,1769775186215,500.0,0.00013704,2]
[404036568,1769775186288,500.0,0.00013704,2]
[404036569,1769775186664,500.0,0.00013704,2]
[404036570,1769775186748,500.0,0.00013704,2]
[404036571,1769775186793,500.0,0.00013704,2]
[404036572,1769775186839,612.40381618,0.00013704,2]
[404036573,1769775186891,483.13166312,0.00013704,2]
[404036574,1769775186916,16.86833688,0.00013704,2]
[404036575,1769775186985,500.0,0.00013704,2]
[404036576,1769775187036,500.0,0.00013704,2]
[404036577,1769775187088,500.0,0.00013704,2]
[404036578,1769775187132,500.0,0.00013704,2]
[404036579,1769775187188,500.0,0.00013704,2]
[404036580,1769775187278,500.0,0.00013704,2]
[404036581,1769775187331,500.0,0.00013704,2]
[404036582,1769775187381,500.0,0.00013704,2]
[404036583,1769775187433,500.0,0.00013704,2]
[404036584,1769775187488,500.0,0.00013704,2]
[404036585,1769775187535,500.0,0.00013704,2]
[404036586,1769775187585,500.0,0.00013704,2]
[404036587,1769775187634,500.0,0.00013704,2]
[404036588,1769775187684,500.0,0.00013704,2]
[404036589,1769775187740,500.0,0.00013704,2]
[404036590,1769775187786,500.0,0.00013704,2]
[404036591,1769775187832,500.0,0.00013704,2]
[404036592,1769775187903,500.0,0.00013704,2]
[404036593,1769775187952,500.0,0.00013704,2]
[404036594,1769775188004,483.14166312,0.00013704,2]
[404036595,1769775242459,300.0,0.00013703,2]
[404036596,1769775437060,-500.0,0.00013704,2]
[404036597,1769775437090,-500.0,0.00013704,2]
[404036598,1769775437119,-500.0,0.00013704,2]
[404036599,1769775479722,3386.93,0.00011233,2]
[404036600,1769775540127,200.0,0.00013701,2]
[404036605,1769775708220,150.0,0.000208,30]
[404036606,1769775727438,3413.08,0.00013703,2]
[404036607,1769775740946,1852.42,0.00013597,2]
[404036608,1769775743633,408.77663791,0.00013653,2]
[404036609,1769775781432,300.0,0.00013702,2]
[404036610,1769775842522,300.0,0.00013702,2]
[404036612,1769775907672,1200.0,0.00013702,2]
[404036613,1769776001102,3371.96714772,0.00013653,2]
[404036614,1769776018915,2566.84621437,0.00013653,2]
[404036615,1769776022245,-4717.09787284,0.00013653,2]
[404036616,1769776022277,-265.81425432,0.00013702,2]
[404036617,1769776026250,-34.18574568,0.00013702,2]
[404036618,1769776031483,451.6219639,0.00013653,2]
[404036619,1769776082216,300.0,0.00013702,2]
[404036620,1769776142084,300.0,0.00013702,2]
[404036621,1769776201854,1200.0,0.00013702,2]
[404036622,1769776226917,500.0,0.00013702,2]
[404036623,1769776226965,500.0,0.00013702,2]
[404036624,1769776227025,500.0,0.00013702,2]
[404036625,1769776227290,500.0,0.00013702,2]
[404036626,1769776227375,500.0,0.00013702,2]
[404036627,1769776227710,500.0,0.00013702,2]
[404036628,1769776227758,500.0,0.00013702,2]
[404036629,1769776227804,500.0,0.00013702,2]
[404036630,1769776227874,500.0,0.00013702,2]
[404036631,1769776227965,500.0,0.00013702,2]
[404036632,1769776228029,460.50344273,0.00013702,2]
[404036633,1769776228094,500.0,0.00013702,2]
[404036634,1769776228355,500.0,0.00013702,2]
[404036635,1769776228403,500.0,0.00013702,2]
[404036636,1769776228740,500.0,0.00013702,2]
[404036637,1769776228892,219.51310201,0.00013702,2]
[404036647,1769776232252,-280.48689799,0.00013702,2]
[404036648,1769776232262,-500.0,0.00013702,2]
[404036649,1769776232271,-500.0,0.00013702,2]
[404036650,1769776232281,-500.0,0.00013702,2]
[404036651,1769776232291,-500.0,0.00013702,2]
[404036652,1769776232300,-500.0,0.00013702,2]
[404036653,1769776232310,-500.0,0.00013702,2]
[404036654,1769776232320,-500.0,0.00013702,2]
[404036655,1769776232329,-500.0,0.00013702,2]
[404036656,1769776232341,-500.0,0.00013702,2]
[404036657,1769776232351,-500.0,0.00013702,2]
[404036658,1769776232360,-500.0,0.00013702,2]
[404036660,1769776232370,-500.0,0.00013702,2]
[404036662,1769776232379,-500.0,0.00013702,2]
[404036664,1769776232389,-500.0,0.00013702,2]
[404036666,1769776232399,-500.0,0.00013702,2]
[404036668,1769776232409,-500.0,0.00013702,2]
[404036670,1769776232419,-500.0,0.00013702,2]
[404036672,1769776232428,-19279.05697793,0.00013703,2]
[404036674,1769776232440,-395.00000005,0.00013703,2]
[404036676,1769776232453,-589.68154739,0.00013703,2]
[404036678,1769776232465,-1388.91954942,0.00013703,2]
[404036681,1769776232481,-2345.02498503,0.00013703,2]
[404036683,1769776232493,-2255.84924183,0.00013703,2]
[404036686,1769776232505,-999.0,0.00013703,2]
[404036689,1769776232522,-333.05133563,0.00013703,2]
[404036692,1769776232542,-45658.4854044,0.00013703,2]
[404036694,1769776232554,-28748.82881321,0.00013703,2]
[404036733,1769776235917,500.0,0.00013702,2]
[404036752,1769776238645,-9590.66337656,0.00013703,2]
[404036753,1769776238656,-588.0,0.00013703,2]
[404036754,1769776238667,-351.01173978,0.00013703,2]
[404036755,1769776238679,-268.40117082,0.00013703,2]
[404036756,1769776238691,-825.89185212,0.00013703,2]
[404036757,1769776240477,-400.20985138,0.00013703,2]
[404036758,1769776240534,-26332.66663116,0.00013703,2]
[404036759,1769776240545,-29302.33068823,0.00013703,2]
[404036760,1769776240555,-44606.91774774,0.00013703,2]
[404036761,1769776240593,-295.9293135,0.00013703,2]
[404036762,1769776240605,-2159.84859905,0.00013703,2]
[404036780,1769776246494,-2764.18798617,0.00013703,2]
[404036781,1769776246551,-2170.57472196,0.00013703,2]
[404036793,1769776262008,300.0,0.00013702,2]
[404036794,1769776275383,522.88632763,0.00013702,2]
[404036795,1769776292774,155.859,0.00013429,2]
[404036796,1769776292816,2426.014,0.00013429,2]
[404036797,1769776301431,500.0,0.00013702,2]
[404036798,1769776320376,5595.25067237,0.00013603,2]
[404036799,1769776320404,10000.01,0.00013603,2]
[404036800,1769776320433,10000.01,0.00013603,2]
[404036801,1769776320463,10000.01,0.00013603,2]
[404036802,1769776320490,10000.01,0.00013603,2]
[404036803,1769776320519,10000.01,0.00013603,2]
[404036804,1769776320546,10000.01,0.00013603,2]
[404036805,1769776320919,10000.01,0.00013603,2]
[404036806,1769776325789,952.82,0.00013525,2]
[404036807,1769776342615,1067.11313122,0.00013503,2]
[404036808,1769776349065,318.82234703,0.00013602,2]
[404036809,1769776381771,300.0,0.00013602,2]
[404036810,1769776382776,300.0,0.00013602,2]
[404036811,1769776383450,150.0,0.00013602,2]
[404036812,1769776388784,-880.0,0.00013603,2]
[404036813,1769776394321,3175.22222896,0.00013503,2]
[404036814,1769776410908,2933.513899,0.00013535,2]
[404036815,1769776424767,-1000.0,0.00013603,2]
[404036816,1769776442338,300.0,0.00013602,2]
[404036817,1769776446002,1455.33839379,0.00013503,2]
[404036818,1769776446024,8821.38524516,0.00013503,2]
[404036819,1769776460455,151.0,0.000136,2]
[404036820,1769776475096,500.0,0.00013602,2]
[404036821,1769776475162,393.37102789,0.00013602,2]
[404036822,1769776475216,134.25372695,0.00013602,2]
[404036823,1769776475240,106.38922959,0.00013602,2]
[404036824,1769776475279,500.0,0.00013602,2]
[404036825,1769776475328,445.61136464,0.00013602,2]
[404036826,1769776475750,500.0,0.00013602,2]
[404036827,1769776488154,500.0,0.00013602,2]
[404036828,1769776488204,171.16736585,0.00013602,2]
[404036829,1769776488265,500.0,0.00013602,2]
[404036830,1769776488323,500.0,0.00013602,2]
[404036831,1769776488383,500.0,0.00013602,2]
[404036832,1769776488437,500.0,0.00013602,2]
[404036833,1769776488491,500.0,0.00013602,2]
[404036834,1769776489439,591.35742468,0.00013602,2]
[404036835,1769776489495,500.0,0.00013602,2]
[404036836,1769776489587,500.0,0.00013602,2]
[404036837,1769776489744,500.0,0.00013602,2]
[404036838,1769776489790,500.0,0.00013602,2]
[404036839,1769776489834,500.0,0.00013602,2]
[404036840,1769776489894,500.0,0.00013602,2]
[404036841,1769776489962,500.0,0.00013602,2]
[404036842,1769776490018,500.0,0.00013602,2]
[404036843,1769776490058,500.0,0.00013602,2]
[404036844,1769776490116,185.48461524,0.00013602,2]
[404036845,1769776490145,314.51538476,0.00013602,2]
[404036846,1769776490211,500.0,0.00013602,2]
[404036847,1769776492295,-1000.0,0.00013603,2]
[404036848,1769776495334,500.0,0.00013602,2]
[404036849,1769776495401,472.98397701,0.00013602,2]
[404036850,1769776501594,200.0,0.00013602,2]
[404036851,1769776501638,300.0,0.00013602,2]
[404036852,1769776501819,1200.0,0.00013602,2]
[404036853,1769776561375,-1000.0,0.00013603,2]
[404036854,1769776562978,300.0,0.00013602,2]
[404036855,1769776563449,150.0,0.00013602,2]
[404036856,1769776571081,385.12305338,0.00013503,2]
[404036857,1769776602379,207.7135181,0.00013503,2]
[404036858,1769776606273,576.06937341,0.00013503,2]
[404036859,1769776612356,-322.08934496,0.00013603,2]
[404036860,1769776614377,-168.45637445,0.00013603,2]
[404036861,1769776617647,-203.46109691,0.00013603,2]
[404036862,1769776619194,-671.86649392,0.00013603,2]
[404036863,1769776624565,162.58766713,0.000204,30]
[404036864,1769776627867,2142.35,0.00013532,2]
[404036865,1769776638065,244.31272218,0.00013503,2]
[404036866,1769776647373,1000.0,0.00013503,2]
[404036867,1769776657338,-302.11367056,0.00013603,2]
[404036868,1769776666502,1506.94197116,0.00013503,2]
[404036869,1769776666533,993.05802884,0.00013503,2]
[404036870,1769776677320,150.0,0.00013602,2]
[404036871,1769776703221,1200.0,0.00013602,2]
[404036872,1769776723406,165.4296975,0.00013602,2]
[404036873,1769776723453,500.0,0.00013602,2]
[404036874,1769776742959,300.0,0.00013602,2]
[404036875,1769776743396,300.0,0.00013602,2]
[404036876,1769776743559,150.0,0.00013602,2]
[404036877,1769776768162,632.90850548,0.00013503,2]
[404036878,1769776774595,500.0,0.00013602,2]
[404036879,1769776774649,500.0,0.00013602,2]
[404036880,1769776785093,4271.77918255,0.00013503,2]
[404036881,1769776801417,300.0,0.00013602,2]
[404036882,1769776801576,36.83458563,0.00013602,2]
[404036883,1769776801603,1163.16541437,0.00013602,2]
[404036884,1769776805075,262.0,0.00013603,2]
[404036885,1769776809756,210.45355858,0.00013593,2]
[404036886,1769776814159,500.0,0.00013602,2]
[404036887,1769776814600,500.0,0.00013602,2]
[404036888,1769776815195,500.0,0.00013602,2]
[404036889,1769776818388,2419.3411,0.00013503,2]
[404036890,1769776845582,500.0,0.00013602,2]
[404036891,1769776845649,500.0,0.00013602,2]
[404036892,1769776845697,500.0,0.00013602,2]
[404036893,1769776845741,500.0,0.00013602,2]
[404036894,1769776845805,500.0,0.00013602,2]
[404036895,1769776845854,500.0,0.00013602,2]
[404036896,1769776845905,500.0,0.00013602,2]
[404036897,1769776845958,500.0,0.00013602,2]
[404036898,1769776846007,445.04992705,0.00013602,2]
[404036899,1769776846032,54.95007295,0.00013602,2]
[404036900,1769776846092,500.0,0.00013602,2]
[404036901,1769776846139,500.0,0.00013602,2]
[404036902,1769776846207,500.0,0.00013602,2]
[404036903,1769776846256,500.0,0.00013602,2]
[404036904,1769776846313,500.0,0.00013602,2]
[404036905,1769776846366,574.00872303,0.00013602,2]
[404036906,1769776868176,195.17,0.000136,2]
[404036907,1769776876488,180.9239376,0.00013503,2]
[404036908,1769776877651,1481.63,0.00013525,2]
[404036909,1769776892039,500.0,0.00013602,2]
[404036910,1769776892347,500.0,0.00013602,2]
[404036911,1769776892616,2245.489,0.00013331,2]
[404036912,1769776892668,169.316,0.00013331,2]
[404036913,1769776892726,500.0,0.00013602,2]
[404036914,1769776893260,500.0,0.00013602,2]
[404036915,1769776893464,500.0,0.00013602,2]
[404036916,1769776893523,98.52226642,0.00013503,2]
[404036917,1769776893547,425.16276759,0.00013503,2]
[404036918,1769776893794,500.0,0.00013602,2]
[404036919,1769776894039,500.0,0.00013602,2]
[404036920,1769776894088,500.0,0.00013602,2]
[404036921,1769776894643,324.00872303,0.00013602,2]
[404036922,1769776894697,500.0,0.00013602,2]
[404036923,1769776915697,7250.83850938,0.00013503,2]
[404036924,1769776915729,10000.01,0.00013503,2]
[404036925,1769776915762,10000.01,0.00013503,2]
[404036926,1769776915794,10000.01,0.00013503,2]
[404036927,1769776915827,10000.01,0.00013503,2]
[404036928,1769776915859,10000.01,0.00013503,2]
[404036929,1769776915891,10000.01,0.00013503,2]
[404036930,1769776915921,10000.01,0.00013503,2]
[404036931,1769776915951,10000.01,0.00013503,2]
[404036932,1769776915984,10000.01,0.00013503,2]
[404036933,1769776916019,1383.45496158,0.00013503,2]
[404036934,1769776916055,640454.61438895,0.00013503,2]
[404036935,1769776921773,300.0,0.00013502,2]
[404036936,1769776922729,300.0,0.00013502,2]
[404036937,1769776923225,150.0,0.00013502,2]
[404036938,1769776924687,184.44067477,0.00013503,2]
[404036939,1769776924723,378.38431742,0.00013503,2]
[404036940,1769776924773,3254.62917349,0.00013503,2]
[404036941,1769776924922,3203.84743619,0.00013503,2]
[404036942,1769776957032,2228.70839813,0.00013502,2]
[404036943,1769776957056,9291.76477301,0.00013502,2]
[404036944,1769776982116,300.0,0.00013502,2]
[404036946,1769777039169,718.74668324,0.00021,30]
[404036947,1769777052050,150.0,0.00013254,2]
[404036948,1769777073767,-163.96,0.00043633,88]
[404036949,1769777073795,-500.0,0.00043633,120]
[404036950,1769777073822,-500.0,0.00043633,120]
[404036951,1769777073849,-200.0,0.00043633,30]
[404036952,1769777073876,-500.0,0.00043633,120]
[404036953,1769777073905,-500.0,0.00043633,120]
[404036954,1769777073933,-316.70280328,0.00043633,120]
[404036955,1769777073968,-462.83,0.00043633,88]
[404036956,1769777074000,-150.0,0.00043633,30]
[404036957,1769777074027,-488.08727559,0.00043633,120]
[404036958,1769777074055,-183.68840404,0.00043633,120]
[404036959,1769777074082,-488.08727559,0.00043633,120]
[404036960,1769777074108,-183.68840404,0.00043633,120]
[404036961,1769777074135,-488.08727559,0.00043633,120]
[404036962,1769777074163,-488.08727559,0.00043633,120]
[404036963,1769777074190,-488.08727559,0.00043633,120]
[404036964,1769777074216,-488.08727559,0.00043633,120]
[404036965,1769777074242,-488.08727559,0.00043633,120]
[404036966,1769777074269,-488.08727559,0.00043633,120]
[404036967,1769777074298,-488.08727559,0.00043633,120]
[404036968,1769777074325,-488.08727559,0.00043633,120]
[404036969,1769777074355,-488.08727559,0.00043633,120]
[404036970,1769777074384,-488.08727559,0.00043633,120]
[404036971,1769777074410,-488.08727559,0.00043633,120]
[404036972,1769777074438,-488.08727559,0.00043633,120]
[404036973,1769777074466,-488.08727559,0.00043633,120]
[404036974,1769777074493,-488.08727559,0.00043633,120]
[404036975,1769777074521,-488.08727559,0.00043633,120]
[404036976,1769777074549,-488.08727559,0.00043633,120]
[404036977,1769777074590,-488.08727559,0.00043633,120]
[404036978,1769777074620,-488.08727559,0.00043633,120]
[404036979,1769777074649,-488.08727559,0.00043633,120]
[404036980,1769777074679,-488.08727559,0.00043633,120]
[404036981,1769777074708,-488.08727559,0.00043633,120]
[404036982,1769777074736,-488.08727559,0.00043633,120]
[404036983,1769777074765,-488.08727559,0.00043633,120]
[404036984,1769777074796,-488.08727559,0.00043633,120]
[404036985,1769777074825,-488.08727559,0.00043633,120]
[404036986,1769777074853,-488.08727559,0.00043633,120]
[404036987,1769777074882,-488.08727559,0.00043633,120]
[404036988,1769777074909,-488.08727559,0.00043633,120]
[404036989,1769777074936,-500.0,0.00043633,120]
[404036990,1769777074963,-500.0,0.00043633,120]
[404036991,1769777074994,-500.0,0.00043633,120]
[404036992,1769777075022,-500.0,0.00043633,120]
[404036993,1769777075050,-500.0,0.00043633,120]
[404036994,1769777075078,-500.0,0.00043633,120]
[404036995,1769777075106,-500.0,0.00043633,120]
[404036996,1769777075137,-500.0,0.00043633,120]
[404036997,1769777075170,-500.0,0.00043633,120]
[404036998,1769777075202,-172.2695612,0.00043633,120]
[404036999,1769777075233,-1502.56384215,0.00043633,30]
[404037000,1769777075266,-186.18,0.00043633,120]
[404037001,1769777075302,-169.10383735,0.00043633,120]
[404037002,1769777075336,-243.57726744,0.00043633,120]
[404037003,1769777075368,-169.10383735,0.00043633,120]
[404037004,1769777075400,-243.57726744,0.00043633,120]
[404037005,1769777075432,-169.10383735,0.00043633,120]
[404037006,1769777075466,-243.57726744,0.00043633,120]
[404037007,1769777075503,-169.10383735,0.00043633,120]
[404037008,1769777075909,-243.57726744,0.00043633,120]
[404037009,1769777075943,-169.10383735,0.00043633,120]
[404037010,1769777075977,-243.57726744,0.00043633,120]
[404037011,1769777076010,-169.10383735,0.00043633,120]
[404037012,1769777076043,-243.57726744,0.00043633,120]
[404037013,1769777076075,-169.10383735,0.00043633,120]
[404037014,1769777076110,-243.57726744,0.00043633,120]
[404037015,1769777076143,-243.57726744,0.00043633,120]
[404037016,1769777076178,-1049.94856315,0.00043633,60]
[404037017,1769777076213,-1000.0,0.00043633,30]
[404037018,1769777076247,-198.10565081,0.00043633,30]
[404037019,1769777076279,-500.0,0.00043633,120]
[404037020,1769777076312,-500.0,0.00043633,120]
[404037021,1769777076344,-500.0,0.00043633,120]
[404037022,1769777076375,-500.0,0.00043633,120]
[404037023,1769777076408,-500.0,0.00043633,120]
[404037024,1769777076440,-475.47455024,0.00043633,120]
[404037025,1769777076471,-460.0,0.00043633,30]
[404037026,1769777076509,-2203.94352954,0.00043633,120]
[404037027,1769777076543,-1319.17196294,0.00043633,120]
[404037028,1769777076575,-626.0,0.00043633,120]
[404037029,1769777076611,-10000.0,0.00043633,120]
[404037030,1769777076644,-10000.0,0.00043633,120]
[404037031,1769777076677,-174.84,0.00043633,120]
[404037032,1769777076711,-1000.0,0.00043633,30]
[404037033,1769777076747,-1000.0,0.00043633,60]
[404037034,1769777076780,-1000.0,0.00043633,120]
[404037035,1769777076812,-797.33337919,0.00043633,120]
[404037036,1769777076842,-459.02,0.00043633,120]
[404037037,1769777076873,-1112.10558044,0.00043633,90]
[404037038,1769777076904,-540.35714484,0.00043633,120]
[404037039,1769777076936,-999.999998,0.00043633,120]
[404037040,1769777076966,-543.71217761,0.00043633,30]
[404037041,1769777076996,-406.51542366,0.00043633,30]
[404037042,1769777077038,-689.19513076,0.00043633,91]
[404037043,1769777077072,-1019.28210417,0.00043633,60]
[404037044,1769777077104,-564.61808548,0.00043633,30]
[404037045,1769777077135,-350.92274844,0.00043633,120]
[404037046,1769777077166,-1020.65045605,0.00043633,120]
[404037047,1769777077198,-201.93720984,0.00043633,120]
[404037048,1769777077228,-793.66520967,0.00043633,120]
[404037049,1769777077259,-181.27208687,0.00043633,120]
[404037050,1769777077293,-177.21066813,0.00043633,120]
[404037051,1769777077326,-836.1768126,0.00043633,120]
[404037052,1769777077358,-576.33013777,0.00043633,30]
[404037053,1769777077393,-1029.88851487,0.00043633,30]
[404037054,1769777077426,-2200.19445432,0.00043633,30]
[404037055,1769777077462,-1049.32823232,0.00043633,30]
[404037056,1769777077502,-1022.36256475,0.00043633,120]
[404037057,1769777077537,-563.2187529,0.00043633,120]
[404037058,1769777077571,-594.31363157,0.00043633,120]
[404037059,1769777077605,-577.47929513,0.00043633,30]